bitfinex/quotes_ETHUSD_20230116
["timestamp","ask_amount","ask_price","bid_price","bid_amount"]
[1673876973471,3.27278678,1540.5,1540.2,0.80722963]
[1673876973627,6.49182,1540.4,1540.2,0.80722963]
[1673876973845,0.066,1540.4,1540.2,0.80722963]
[1673876974146,11.4504,1540.8,1540.3,16.08420296]
[1673876974147,0.066,1540.8,1540.3,16.08420296]
[1673876974358,1.2827056,1540.9,1540.3,13.13120296]
[1673876975042,1.2827056,1540.9,1540.5,6.49118]
[1673876975207,1.2827056,1540.9,1540.7,1.512]
[1673876975867,0.7955056,1540.9,1540.7,1.512]
[1673876976052,0.7955056,1540.9,1540.8,1.512]
[1673876976477,0.7955056,1540.9,1540.8,8.00213]
[1673876976689,0.7955056,1540.9,1540.8,9.57513]
[1673876977251,0.7955056,1540.9,1540.8,16.06526]
[1673876977568,0.7955056,1540.9,1540.8,9.57513]
[1673876977932,0.7955056,1540.9,1540.8,16.06526]
[1673876978193,0.7955056,1540.9,1540.8,28.056066]
[1673876979945,0.7955056,1540.9,1540.8,32.83585278]
[1673876982050,0.7955056,1540.9,1540.8,28.051066]
[1673876982479,0.7955056,1540.9,1540.8,25.55039]
[1673876984599,0.8030059,1540.9,1540.8,25.55039]
[1673876985840,0.8030059,1540.9,1540.8,25.78039]
[1673876987437,0.8030059,1540.9,1540.8,29.05317678]
[1673876988963,0.8030059,1540.9,1540.8,30.91549831]
[1673876989237,0.8030059,1540.9,1540.8,30.91549889]
[1673876989445,0.8030059,1540.9,1540.8,30.56417678]
[1673876990224,0.8030059,1540.9,1540.8,30.91559238]
[1673876990692,0.8030059,1540.9,1540.8,30.56417678]
[1673876991293,0.8050059,1540.9,1540.8,30.56217678]
[1673876991501,0.8030059,1540.9,1540.8,30.56417678]
[1673876991973,0.79948694,1540.9,1540.8,30.56417678]
[1673876992111,0.79948694,1540.9,1540.8,30.91565991]
[1673876992327,6.94e-06,1540.9,1540.8,37.40578991]
[1673876992539,1.78997335,1541.1,1540.8,38.37398234]
[1673876992748,1.78997335,1541.1,1541.0,1.512]
[1673876992994,1.78997335,1541.1,1541.0,31.54342546]
[1673876993209,1.78997335,1541.1,1541.0,34.83942546]
[1673876994126,1.78997335,1541.1,1541.0,36.33642546]
[1673876995704,1.78997335,1541.1,1541.0,36.71219177]
[1673876996338,1.78997335,1541.1,1541.0,36.71217214]
[1673876998627,1.74480445,1541.2,1541.0,45.03517214]
[1673876998839,1.74480445,1541.2,1541.1,14.38713115]
[1673876999048,1.74480445,1541.2,1541.1,33.91974115]
[1673876999466,1.74480445,1541.2,1541.1,33.54399447]
[1673876999953,1.74480445,1541.2,1541.1,32.03199447]
[1673877003722,1.74480445,1541.2,1541.1,33.54399447]
[1673877003878,1.74480445,1541.2,1541.1,30.54399447]
[1673877004951,1.74480445,1541.2,1541.1,37.35499447]
[1673877005156,1.74480445,1541.2,1541.1,40.35499447]
[1673877005566,1.74480445,1541.2,1541.1,38.84299447]
[1673877007048,1.74480445,1541.2,1541.1,40.35499447]
[1673877007399,1.74480445,1541.2,1541.1,47.27480411]
[1673877007620,4.45e-06,1541.2,1541.1,48.24299654]
[1673877007802,4.45e-06,1541.2,1541.1,47.22480411]
[1673877009070,4.45e-06,1541.2,1541.1,46.79386447]
[1673877009418,4.45e-06,1541.2,1541.1,47.24858718]
[1673877010319,0.066,1541.6,1541.1,48.56792298]
[1673877010531,9.2592,1541.8,1541.4,10.08378678]
[1673877010759,8.8383,1541.8,1541.7,3.019]
[1673877010941,0.066,1541.8,1541.7,19.49407678]
[1673877011153,0.02277806,1541.9,1541.7,29.04641678]
[1673877011398,0.02277806,1541.9,1541.7,6.55195]
[1673877011613,0.4869,1541.8,1541.7,6.55195]
[1673877012036,0.4869,1541.8,1541.7,0.066]
[1673877012190,0.4869,1541.8,1541.6,19.52563]
[1673877013992,0.4869,1541.8,1541.6,23.441393]
[1673877015240,0.4869,1541.8,1541.6,21.03763]
[1673877015451,0.4869,1541.8,1541.6,24.31041678]
[1673877016669,12.60248438,1541.9,1541.6,22.79841678]
[1673877016825,2.57523462,1541.8,1541.6,19.52563]
[1673877019241,2.57523462,1541.8,1541.6,0.066]
[1673877019453,2.57523462,1541.8,1541.5,6.55301]
[1673877019454,1.22292978,1541.7,1541.5,6.55301]
[1673877019698,0.96540632,1541.6,1541.5,0.066]
[1673877019947,2.57523462,1541.6,1541.4,13.04097]
[1673877021023,2.57523462,1541.6,1541.4,0.066]
[1673877021233,3.7076696,1541.6,1541.4,6.48757]
[1673877021493,3.72267644,1541.7,1541.4,19.52877]
[1673877021707,1.71395206,1541.7,1541.4,19.52877]
[1673877022237,1.4564286,1541.7,1541.4,19.52877]
[1673877022551,4.51447871,1541.7,1541.4,19.52877]
[1673877022859,1.4564286,1541.7,1541.4,19.52877]
[1673877023540,1.45230632,1541.7,1541.4,19.52877]
[1673877023764,1.45230632,1541.7,1541.4,21.02877]
[1673877024243,1.45230632,1541.7,1541.4,27.05321578]
[1673877024457,10.40510632,1541.8,1541.5,4.503]
[1673877024627,10.40510632,1541.8,1541.6,19.46028]
[1673877024978,10.40510632,1541.8,1541.6,19.52628]
[1673877025195,1.03140632,1541.8,1541.6,19.52628]
[1673877025342,0.96540632,1541.8,1541.6,20.55269737]
[1673877025556,2.57514291,1541.8,1541.6,20.55269737]
[1673877026081,2.57514291,1541.8,1541.6,23.82548415]
[1673877026297,14.05059385,1541.9,1541.6,25.33248415]
[1673877026499,13.56379385,1541.9,1541.6,25.33248415]
[1673877026709,2.57511899,1541.8,1541.6,25.33248415]
[1673877026967,13.56379385,1541.9,1541.6,25.33248415]
[1673877027776,2.57515665,1541.8,1541.6,25.33248415]
[1673877028254,2.57515665,1541.8,1541.7,2.53324842]
[1673877028457,2.57515665,1541.8,1541.7,24.99226842]
[1673877028622,2.57515665,1541.8,1541.7,25.05826842]
[1673877029261,3.0578598,1541.8,1541.7,16.03868]
[1673877029583,3.0578598,1541.8,1541.7,9.55234]
[1673877029584,4.99122058,1541.8,1541.7,9.55234]
[1673877029776,3.54723339,1541.8,1541.7,0.066]
[1673877030004,5.90689511,1541.8,1541.5,6.55298]
[1673877030245,0.96887596,1541.6,1541.5,6.55298]
[1673877030673,2.57862629,1541.6,1541.5,6.55298]
[1673877030979,0.96887596,1541.6,1541.5,6.55298]
[1673877031155,2.57862629,1541.6,1541.5,6.55298]
[1673877031979,4.03194024,1541.6,1541.5,6.55298]
[1673877032312,17.61078349,1541.6,1541.5,0.066]
[1673877032549,17.68158047,1541.6,1541.2,6.55417]
[1673877032876,0.96906257,1541.4,1541.2,0.066]
[1673877033062,1.08790626,1541.3,1541.1,30.376]
[1673877033276,1.08790626,1541.3,1541.1,0.066]
[1673877033277,0.991,1541.3,1541.1,0.066]
[1673877033463,1.96006257,1541.3,1541.0,8.06802]
[1673877033673,1.96006257,1541.3,1541.1,3.0]
[1673877034102,0.96906257,1541.3,1541.1,3.0]
[1673877034773,2.57933672,1541.3,1541.1,3.0]
[1673877035345,2.83254949,1541.3,1541.0,6.55497]
[1673877035594,3.31954949,1541.3,1541.0,6.55497]
[1673877036139,2.83254949,1541.3,1541.0,6.55497]
[1673877036825,2.83254949,1541.3,1541.0,13.04426]
[1673877037182,1.37895563,1541.3,1541.0,13.04426]
[1673877037344,0.96906257,1541.3,1541.0,13.04426]
[1673877037917,2.5793722,1541.3,1541.0,13.04426]
[1673877039298,0.96906257,1541.3,1541.0,13.04426]
[1673877039504,0.96906257,1541.3,1541.0,19.53355]
[1673877039675,2.97565643,1541.4,1541.0,19.53355]
[1673877039870,2.90965643,1541.4,1541.0,26.72269178]
[1673877040914,1.45606257,1541.4,1541.0,26.72269178]
[1673877041395,1.45606257,1541.4,1541.0,21.04655]
[1673877041564,0.96906257,1541.4,1541.0,21.04655]
[1673877041761,2.57932599,1541.4,1541.0,21.04655]
[1673877043570,4.03291985,1541.4,1541.0,21.04655]
[1673877043783,2.57932599,1541.4,1541.0,19.53355]
[1673877043991,5.46419086,1541.4,1541.0,19.53355]
[1673877044212,4.076597,1541.4,1541.0,19.53355]
[1673877044516,4.010597,1541.4,1541.0,19.53355]
[1673877045461,0.96906257,1541.4,1541.0,22.80633678]
[1673877045674,11.94957871,1541.5,1541.0,24.31933678]
[1673877046091,11.94957871,1541.5,1541.1,3.0]
[1673877046307,11.94957871,1541.5,1541.2,19.46511]
[1673877046671,15.37880057,1541.5,1541.2,19.53111]
[1673877046976,23.80873495,1541.5,1541.2,13.04272]
[1673877049336,23.80873495,1541.5,1541.2,6.55436]
[1673877049541,0.96906257,1541.4,1541.2,6.55436]
[1673877049802,2.57934086,1541.4,1541.2,6.55436]
[1673877049959,5.76997518,1541.4,1541.2,6.55436]
[1673877050170,4.22569689,1541.4,1541.2,6.55436]
[1673877050433,4.15969689,1541.4,1541.2,6.55436]
[1673877055708,4.15969689,1541.4,1541.2,13.04281]
[1673877056085,17.32152495,1541.5,1541.2,13.04281]
[1673877056299,11.94957871,1541.5,1541.2,19.53126]
[1673877056991,0.96906257,1541.4,1541.2,19.53126]
[1673877057141,2.57929582,1541.4,1541.2,19.53126]
[1673877057561,0.96906257,1541.4,1541.2,19.53126]
[1673877057851,10.00486257,1541.5,1541.2,19.53126]
[1673877057983,9.0358,1541.5,1541.3,1.953126]
[1673877058196,0.066,1541.5,1541.4,12.9752]
[1673877058446,12.40673023,1541.6,1541.4,6.5536]
[1673877058769,13.86032409,1541.6,1541.4,6.5536]
[1673877059136,12.40673023,1541.6,1541.4,6.5536]
[1673877059612,12.40673023,1541.6,1541.4,0.066]
[1673877059823,2.57921097,1541.5,1541.3,6.55383]
[1673877060979,14.34952915,1541.6,1541.3,20.984378]
[1673877061134,12.40673023,1541.6,1541.3,20.98228475]
[1673877061819,11.43766766,1541.6,1541.4,3.27278678]
[1673877062139,0.34216766,1541.6,1541.5,20.97454]
[1673877062447,0.27616766,1541.6,1541.5,24.04054]
[1673877062657,0.27616766,1541.6,1541.5,8.06618]
[1673877062816,0.27616766,1541.6,1541.5,0.066]
[1673877062817,1.36975325,1541.6,1541.5,0.066]
[1673877063025,0.27616766,1541.6,1541.5,19.46154]
[1673877063398,0.27616766,1541.6,1541.5,24.30432678]
[1673877063555,0.27616766,1541.6,1541.5,27.30432678]
[1673877067039,0.27616766,1541.6,1541.5,25.80032678]
[1673877067236,0.27616766,1541.6,1541.5,27.31332678]
[1673877067439,0.27616766,1541.6,1541.5,27.33312678]
[1673877067882,0.27616766,1541.6,1541.5,27.31332678]
[1673877070695,0.27616766,1541.6,1541.5,21.04054]
[1673877070956,2.85517133,1541.6,1541.5,21.04054]
[1673877071122,0.27816766,1541.6,1541.5,21.03854]
[1673877071329,0.27616766,1541.6,1541.5,21.04054]
[1673877071796,0.27616766,1541.6,1541.5,23.793334]
[1673877072468,0.27616766,1541.6,1541.5,30.06612078]
[1673877077456,0.27616766,1541.6,1541.5,36.87712078]
[1673877077625,0.27616766,1541.6,1541.5,38.39012078]
[1673877077840,0.27616766,1541.6,1541.5,38.62012078]
[1673877079525,0.27616766,1541.6,1541.5,38.52012078]
[1673877079853,7.66e-06,1541.6,1541.5,38.52012078]
[1673877080070,7.66e-06,1541.6,1541.5,46.29172078]
[1673877083447,7.66e-06,1541.6,1541.5,44.77872078]
[1673877084534,7.66e-06,1541.6,1541.5,44.54872078]
[1673877085543,7.66e-06,1541.6,1541.5,37.73772078]
[1673877090510,7.66e-06,1541.6,1541.5,29.96612078]
[1673877090835,7.66e-06,1541.6,1541.5,25.70032678]
[1673877091053,7.66e-06,1541.6,1541.5,22.70032678]
[1673877092165,7.66e-06,1541.6,1541.5,19.42754]
[1673877092360,7.66e-06,1541.6,1541.5,12.94036]
[1673877093030,2.57906616,1541.6,1541.5,12.94036]
[1673877093247,7.66e-06,1541.6,1541.5,12.94036]
[1673877095252,7.40892159,1541.6,1541.5,12.94036]
[1673877095425,7.47492184,1541.6,1541.5,12.94036]
[1673877096044,1.67597108,1541.6,1541.5,12.94036]
[1673877096249,1.61197108,1541.6,1541.5,19.42554]
[1673877096529,1.60997108,1541.6,1541.5,19.42754]
[1673877096869,4.18729255,1541.6,1541.5,12.94036]
[1673877097147,4.87035297,1541.6,1541.5,6.45318]
[1673877097307,6.32201015,1541.6,1541.5,6.45318]
[1673877097667,6.87491015,1541.6,1541.5,6.45318]
[1673877099558,7.35588616,1541.6,1541.5,6.45318]
[1673877099750,1.71694409,1541.6,1541.5,6.45318]
[1673877099968,0.96788367,1541.6,1541.5,6.45318]
[1673877101188,1.93572602,1541.6,1541.5,12.94036]
[1673877101436,1.93572602,1541.6,1541.5,19.42754]
[1673877101655,5.1556782,1541.6,1541.5,19.42754]
[1673877101823,5.2216782,1541.6,1541.5,19.42754]
[1673877102455,2.64385816,1541.6,1541.5,19.42754]
[1673877102667,2.57785816,1541.6,1541.5,19.42754]
[1673877102990,2.57785816,1541.6,1541.5,19.42537161]
[1673877103392,0.96788367,1541.6,1541.5,19.42537161]
[1673877104928,7.66e-06,1541.6,1541.5,19.42537161]
[1673877107542,2.57774729,1541.6,1541.5,19.42537161]
[1673877109386,2.57774729,1541.6,1541.5,19.41127861]
[1673877109842,0.96783094,1541.6,1541.5,19.41127861]
[1673877110061,0.96783094,1541.6,1541.5,28.27391625]
[1673877110243,0.96787822,1541.7,1541.6,1.96750892]
[1673877110432,0.96787822,1541.7,1541.6,29.2012057]
[1673877110638,0.96787822,1541.7,1541.6,29.2672057]
[1673877110909,0.96787822,1541.7,1541.6,35.7539657]
[1673877111119,1.24173362,1541.7,1541.6,36.94219121]
[1673877112348,0.2738554,1541.7,1541.6,36.94168229]
[1673877112570,0.2738554,1541.7,1541.6,36.95268229]
[1673877114211,0.2738554,1541.7,1541.6,43.76368229]
[1673877114423,0.02277806,1541.9,1541.6,47.21856761]
[1673877114657,8.06e-06,1541.9,1541.8,14.07013557]
[1673877115024,0.02812989,1542.0,1541.8,40.30981557]
[1673877115220,0.02812989,1542.0,1541.9,24.56378678]
[1673877115437,0.02812989,1542.0,1541.9,24.62978678]
[1673877115659,0.02812989,1542.0,1541.9,27.62978678]
[1673877115830,0.02812989,1542.0,1541.9,28.81801229]
[1673877117496,9.89e-06,1542.0,1541.9,28.81801229]
[1673877117707,9.89e-06,1542.0,1541.9,35.53351229]
[1673877118555,9.89e-06,1542.0,1541.9,35.86861229]
[1673877119085,9.89e-06,1542.0,1541.9,35.53351229]
[1673877119708,9.89e-06,1542.0,1541.9,35.30351229]
[1673877122249,9.89e-06,1542.0,1541.9,28.49251229]
[1673877124297,9.89e-06,1542.0,1541.9,35.30351229]
[1673877129132,9.89e-06,1542.0,1541.9,28.49251229]
[1673877129847,9.89e-06,1542.0,1541.9,22.79528678]
[1673877131244,9.89e-06,1542.0,1541.9,25.79528678]
[1673877131720,9.89e-06,1542.0,1541.9,25.44147161]
[1673877132926,9.89e-06,1542.0,1541.9,9.5515]
[1673877135340,9.89e-06,1542.0,1541.9,16.037]
[1673877136073,9.89e-06,1542.0,1541.9,25.79528678]
[1673877139604,9.89e-06,1542.0,1541.9,16.037]
[1673877141586,9.89e-06,1542.0,1541.9,22.5225]
[1673877142008,9.89e-06,1542.0,1541.9,25.79528678]
[1673877145164,9.89e-06,1542.0,1541.9,20.79528678]
[1673877149107,0.96870158,1542.0,1541.9,20.79528678]
[1673877149323,9.89e-06,1542.0,1541.9,20.79528678]
[1673877151648,9.89e-06,1542.0,1541.9,23.67386646]
[1673877152299,9.89e-06,1542.0,1541.9,20.79528678]
[1673877152934,0.96870158,1542.0,1541.9,20.79528678]
[1673877157204,9.89e-06,1542.0,1541.9,20.79528678]
[1673877158268,0.96870158,1542.0,1541.9,20.79528678]
[1673877162215,9.89e-06,1542.0,1541.9,27.60628678]
[1673877162429,9.89e-06,1542.0,1541.9,30.34232545]
[1673877162604,9.89e-06,1542.0,1541.9,30.80404665]
[1673877162819,9.89e-06,1542.0,1541.9,30.08552545]
[1673877166909,9.89e-06,1542.0,1541.9,29.11828678]
[1673877167592,9.89e-06,1542.0,1541.9,30.08552545]
[1673877169585,0.99969319,1542.3,1542.0,0.00319758]
[1673877169745,0.99969319,1542.3,1542.1,30.72242678]
[1673877169953,0.99969319,1542.3,1542.2,3.27278678]
[1673877169954,0.0310015,1542.3,1542.2,3.27278678]
[1673877170334,0.0310015,1542.3,1542.2,27.23650678]
[1673877170477,0.0310015,1542.3,1542.2,34.11350678]
[1673877174827,0.0310015,1542.3,1542.2,27.30250678]
[1673877175525,0.0310015,1542.3,1542.2,22.79150678]
[1673877177056,0.0310015,1542.3,1542.2,25.79150678]
[1673877177786,2.6089333,1542.3,1542.2,25.79150678]
[1673877178172,2.6109333,1542.3,1542.2,25.78950678]
[1673877178521,2.6089333,1542.3,1542.2,25.79150678]
[1673877178946,0.99969319,1542.3,1542.2,25.79150678]
[1673877179305,2.60894104,1542.3,1542.2,25.79150678]
[1673877179781,2.60894104,1542.3,1542.2,25.78792462]
[1673877183309,0.99969319,1542.3,1542.2,25.78792462]
[1673877183730,2.60894841,1542.3,1542.2,25.78792462]
[1673877184912,3.16924608,1542.3,1542.2,22.51872]
[1673877185092,4.13943349,1542.3,1542.2,3.066]
[1673877185406,4.13943349,1542.3,1542.1,19.51978]
[1673877185407,3.65273349,1542.3,1542.1,19.51978]
[1673877185620,0.59129917,1542.3,1542.1,19.51978]
[1673877185866,0.57403261,1542.3,1542.1,19.51978]
[1673877186197,1.45184872,1542.2,1542.1,19.51978]
[1673877187561,0.64003261,1542.3,1542.1,19.51978]
[1673877187714,0.57403261,1542.3,1542.1,19.51978]
[1673877188611,0.99512228,1542.2,1542.1,6.55046]
[1673877188773,1.39403419,1542.2,1542.1,6.55046]
[1673877191032,3.00345132,1542.2,1542.1,6.55046]
[1673877191778,2.98050248,1542.2,1542.1,6.55046]
[1673877191982,0.40303419,1542.2,1542.1,6.55046]
[1673877192197,1.37107863,1542.2,1542.1,13.03512]
[1673877192347,1.39403419,1542.2,1542.1,13.03512]
[1673877192552,1.96319859,1542.2,1542.1,13.03512]
[1673877193259,2.60454736,1542.2,1542.1,6.55046]
[1673877193718,0.99512228,1542.2,1542.1,6.55046]
[1673877194152,1.61354736,1542.2,1542.1,6.55046]
[1673877194682,2.60454736,1542.2,1542.1,6.55046]
[1673877194886,1.55500585,1542.2,1542.1,6.55046]
[1673877195115,3.16443093,1542.2,1542.1,6.55046]
[1673877195436,2.17343093,1542.2,1542.1,6.55046]
[1673877195608,0.56400585,1542.2,1542.1,6.55046]
[1673877196024,2.50045716,1542.2,1542.1,0.066]
[1673877196279,6.53013797,1542.2,1542.0,6.44403967]
[1673877196495,1.24104572,1542.1,1542.0,6.44403967]
[1673877199805,2.57773248,1542.1,1542.0,6.44403967]
[1673877200122,4.50932077,1542.2,1542.0,6.44403967]
[1673877200123,0.55682228,1542.2,1542.0,19.41419967]
[1673877200279,2.09606777,1542.2,1542.0,19.41419967]
[1673877200486,1.60936777,1542.2,1542.0,19.41419967]
[1673877201026,1.60936777,1542.2,1542.0,22.30414864]
[1673877202894,20.25343494,1542.3,1542.0,22.30414864]
[1673877203107,20.25343494,1542.3,1542.0,19.41419967]
[1673877205317,20.25343494,1542.3,1542.1,3.0]
[1673877205491,20.25343494,1542.3,1542.1,15.96883]
[1673877205679,20.25343494,1542.3,1542.1,16.03483]
[1673877206099,11.18213494,1542.3,1542.1,16.03483]
[1673877206496,11.18213494,1542.3,1542.1,22.51949]
[1673877207135,12.14990758,1542.3,1542.1,22.51949]
[1673877207980,12.14990758,1542.3,1542.2,3.27278678]
[1673877207981,11.18213494,1542.3,1542.2,3.27278678]
[1673877208191,11.18213494,1542.3,1542.2,25.72550678]
[1673877208521,11.18213494,1542.3,1542.2,25.79150678]
[1673877208690,0.07973494,1542.3,1542.2,25.79150678]
[1673877208899,0.01373494,1542.3,1542.2,27.31763415]
[1673877213320,2.59116441,1542.3,1542.2,27.31763415]
[1673877215048,0.01373494,1542.3,1542.2,27.31763415]
[1673877219235,0.01101052,1542.3,1542.2,27.31763415]
[1673877223714,0.01101052,1542.3,1542.2,34.12863415]
[1673877223928,0.01101052,1542.3,1542.2,40.05935966]
[1673877223929,5.2e-07,1542.3,1542.2,40.05935966]
[1673877224136,2.92802832,1542.4,1542.3,8.323]
[1673877224399,2.92802832,1542.4,1542.3,41.8447635]
[1673877224606,2.92802832,1542.4,1542.3,38.8207635]
[1673877224796,2.92802832,1542.4,1542.3,34.85319578]
[1673877227234,2.92802832,1542.4,1542.3,37.38119578]
[1673877230017,8.32e-06,1542.4,1542.3,37.38119578]
[1673877230227,2.92513421,1542.6,1542.3,37.38119578]
[1673877230438,2.92513421,1542.6,1542.5,1.259]
[1673877230689,2.92513421,1542.6,1542.5,30.46370678]
[1673877230906,2.92513421,1542.6,1542.5,33.52970678]
[1673877235665,2.92513421,1542.6,1542.5,32.27070678]
[1673877238480,0.0310015,1542.6,1542.5,32.27070678]
[1673877238696,0.0310015,1542.6,1542.5,34.52265578]
[1673877238888,0.0310015,1542.6,1542.5,35.78565578]
[1673877241633,0.0310015,1542.6,1542.5,42.59665578]
[1673877246496,0.034375,1542.7,1542.5,42.59665578]
[1673877246709,0.034375,1542.7,1542.6,35.05946678]
[1673877246863,0.034375,1542.7,1542.6,36.65159415]
[1673877247303,0.034375,1542.7,1542.6,29.84059415]
[1673877247560,0.034375,1542.7,1542.6,28.57659415]
[1673877252605,0.03771792,1542.8,1542.6,28.57659415]
[1673877252822,0.03771792,1542.8,1542.7,3.27278678]
[1673877252963,0.03771792,1542.8,1542.7,25.71920678]
[1673877253170,0.03771792,1542.8,1542.7,25.78520678]
[1673877253385,2.61306583,1542.8,1542.7,25.78520678]
[1673877254239,2.61306583,1542.8,1542.7,22.51242]
[1673877254516,4.47649321,1542.8,1542.7,22.51242]
[1673877254703,4.47649321,1542.8,1542.7,16.03028]
[1673877255340,3.50988282,1542.8,1542.7,16.03028]
[1673877255908,3.50988282,1542.8,1542.7,9.54814]
[1673877256118,5.44158827,1542.8,1542.7,3.066]
[1673877256433,4.05748957,1542.8,1542.7,3.0]
[1673877256679,5.25448957,1542.8,1542.6,0.066]
[1673877256895,3.0591719,1542.7,1542.6,3.0]
[1673877257431,3.7362643,1542.7,1542.6,3.0]
[1673877257642,5.66796975,1542.7,1542.5,0.066]
[1673877257961,5.66796975,1542.7,1542.4,13.03223]
[1673877257962,3.54566844,1542.6,1542.4,13.03223]
[1673877258170,2.57596833,1542.5,1542.4,6.54909]
[1673877258388,4.02629925,1542.5,1542.4,6.54909]
[1673877260278,3.0593805,1542.5,1542.4,6.54909]
[1673877260587,4.02641865,1542.5,1542.4,6.54909]
[1673877261127,3.0593805,1542.5,1542.4,6.54516874]
[1673877261422,1.45033092,1542.5,1542.4,6.54516874]
[1673877261587,3.0593805,1542.5,1542.4,6.54516874]
[1673877262354,1.45033092,1542.5,1542.4,6.54516874]
[1673877262568,3.0593805,1542.5,1542.4,6.54516874]
[1673877263682,5.22700186,1542.5,1542.4,6.54516874]
[1673877263940,4.97034599,1542.5,1542.4,6.54516874]
[1673877264166,7.32275144,1542.5,1542.4,0.066]
[1673877264352,7.38875144,1542.5,1542.3,19.51709]
[1673877264562,2.57536302,1542.4,1542.3,19.51709]
[1673877267748,1.51901344,1542.5,1542.3,19.51709]
[1673877267960,1.45301344,1542.5,1542.3,19.51709]
[1673877269491,0.96631344,1542.5,1542.3,19.51709]
[1673877269699,2.57541439,1542.5,1542.3,19.51709]
[1673877270270,4.02574531,1542.5,1542.3,19.51709]
[1673877270483,4.14217633,1542.5,1542.3,19.51709]
[1673877272631,2.69184541,1542.5,1542.3,19.51709]
[1673877273481,2.57551521,1542.4,1542.3,19.51709]
[1673877274178,2.57551521,1542.4,1542.3,6.54957]
[1673877276960,3.83951521,1542.4,1542.3,0.066]
[1673877277235,1.02766489,1542.2,1542.1,6.5505]
[1673877277404,2.29066489,1542.2,1542.1,9.5505]
[1673877278711,2.29066489,1542.2,1542.1,6.5505]
[1673877278856,2.62291305,1542.2,1542.1,0.066]
[1673877279059,2.62291305,1542.2,1542.0,13.03598]
[1673877280459,2.62291305,1542.2,1542.0,6.55099]
[1673877280675,3.58872973,1542.2,1542.0,0.066]
[1673877280848,1.25329131,1542.1,1541.9,19.52182]
[1673877290345,0.26229131,1542.1,1541.9,19.52182]
[1673877294271,0.26229131,1542.1,1541.9,13.03652]
[1673877294465,2.23181668,1542.0,1541.9,0.066]
[1673877294675,4.39679137,1542.0,1541.8,13.03766]
[1673877295006,2.78720363,1542.0,1541.8,6.55183]
[1673877295167,2.79132591,1542.0,1541.8,6.55183]
[1673877295374,4.24165683,1542.0,1541.8,0.066]
[1673877295615,4.24165683,1542.0,1541.7,13.16274546]
[1673877297072,1.25360972,1541.5,1541.4,13.20098764]
[1673877298708,1.25360972,1541.5,1541.4,8.20098764]
[1673877299279,1.37897069,1541.5,1541.4,1.71369764]
[1673877299534,1.37897069,1541.5,1541.4,1.64769764]
[1673877301211,1.37897069,1541.5,1541.4,8.13529764]
[1673877301219,1.25360972,1541.5,1541.4,17.96168442]
[1673877301220,1.25360972,1541.5,1541.4,23.47568442]
[1673877302535,1.25360972,1541.5,1541.4,23.60568442]
[1673877302749,1.25360972,1541.5,1541.4,20.96168442]
[1673877302994,1.25360972,1541.5,1541.4,23.95781322]
[1673877303211,1.25360972,1541.5,1541.4,14.68889764]
[1673877303422,1.257732,1541.5,1541.4,0.066]
[1673877303591,1.257732,1541.5,1541.3,6.70236492]
[1673877303806,1.26,1541.4,1541.3,0.21458492]
[1673877304060,1.26,1541.4,1541.3,0.14858492]
[1673877304210,1.5117732,1541.4,1541.3,0.14858492]
[1673877305915,1.5117732,1541.4,1541.2,5.88521202]
[1673877306489,1.5117732,1541.4,1541.2,0.066]
[1673877306634,1.74725257,1541.3,1541.1,13.20785598]
[1673877307164,1.26025257,1541.3,1541.1,13.20785598]
[1673877307373,1.59275515,1541.3,1541.1,6.71918598]
[1673877308157,1.258,1541.2,1541.1,0.23060598]
[1673877308377,1.258,1541.2,1541.1,0.16460598]
[1673877309341,3.0021,1541.2,1541.1,0.16460598]
[1673877309627,10.47281926,1541.2,1541.1,0.16460598]
[1673877309788,10.53881926,1541.2,1541.1,0.16460598]
[1673877310004,10.54294154,1541.2,1541.1,0.16460598]
[1673877310237,17.03139154,1541.2,1541.1,0.16460598]
[1673877310637,21.56017832,1541.2,1541.1,0.16460598]
[1673877310870,1.26380181,1541.0,1540.9,0.17223233]
[1673877311048,13.68125877,1541.0,1540.9,0.17223233]
[1673877311285,7.49209105,1541.0,1540.7,0.21583185]
[1673877311491,2.523,1540.8,1540.7,0.21583185]
[1673877311940,3.24632228,1540.8,1540.7,0.21583185]
[1673877312115,3.24432228,1540.8,1540.7,0.21583185]
[1673877312343,29.42236298,1540.8,1540.6,0.21583185]
[1673877312578,13.36168001,1540.7,1540.5,0.20819293]
[1673877312909,0.52475993,1540.4,1540.0,1.40566611]
[1673877313062,0.52475993,1540.4,1540.0,1.33966611]
[1673877313063,3.27278678,1540.3,1540.0,1.33966611]
[1673877313277,0.23,1540.2,1540.0,1.33966611]
[1673877313505,1.75142228,1540.3,1540.0,1.33966611]
[1673877313754,0.49142228,1540.3,1540.0,1.33966611]
[1673877313901,0.49142228,1540.3,1540.0,7.83309611]
[1673877314112,0.49142228,1540.3,1540.0,1.40566611]
[1673877314379,3.99222728,1540.3,1540.0,1.33966611]
[1673877314661,5.24722728,1540.3,1540.0,1.33966611]
[1673877315105,5.31322728,1540.3,1540.0,1.33966611]
[1673877315772,1.258,1540.1,1540.0,1.33966611]
[1673877315779,4.05822728,1540.3,1540.0,1.33966611]
[1673877315780,0.7854405,1540.3,1540.0,1.33966611]
[1673877315964,0.00812228,1540.3,1540.0,7.96713272]
[1673877316176,0.52475993,1540.4,1540.0,14.52663272]
[1673877316318,0.52475993,1540.4,1540.2,1.256]
[1673877316783,0.52475993,1540.4,1540.3,19.47672]
[1673877316983,0.52475993,1540.4,1540.3,20.82433171]
[1673877318813,0.52475993,1540.4,1540.3,7.83985171]
[1673877320107,0.52475993,1540.4,1540.3,4.83985171]
[1673877320336,0.52475993,1540.4,1540.2,0.066]
[1673877320337,0.52888221,1540.4,1540.2,0.066]
[1673877320558,0.52888221,1540.4,1540.1,6.55901]
[1673877320773,0.70817043,1540.4,1540.1,6.55901]
[1673877320998,1.19547043,1540.4,1540.1,6.55901]
[1673877321208,1.19547043,1540.4,1540.1,13.05209]
[1673877321525,0.52475993,1540.4,1540.1,13.05209]
[1673877322102,0.52475993,1540.4,1540.2,3.0]
[1673877322363,0.52475993,1540.4,1540.2,9.49262]
[1673877322515,0.52475993,1540.4,1540.2,9.55862]
[1673877322726,0.70364815,1540.4,1540.2,9.55862]
[1673877323412,0.70364815,1540.4,1540.2,6.55862]
[1673877323941,1.263,1540.3,1540.2,0.066]
[1673877324158,1.263,1540.3,1540.1,3.0]
[1673877324159,1.493,1540.3,1540.1,3.0]
[1673877324459,1.493,1540.3,1540.0,7.89883611]
[1673877325416,2.34405993,1540.4,1540.0,14.39233611]
[1673877325580,2.27805993,1540.4,1540.0,14.39233611]
[1673877325772,0.22780599,1540.3,1540.0,14.39233611]
[1673877327920,0.52475993,1540.4,1540.0,20.88583611]